fUST/lending_fUST_20240524
["ID","MTS","AMOUNT","RATE_DAILY","PERIOD"]
[327805426,1716495048719,-500.0,0.00024931,3]
[327805428,1716495048728,-500.0,0.00024931,3]
[327805430,1716495048738,-500.0,0.00024931,3]
[327805432,1716495048747,-1150.1,0.00024931,3]
[327805434,1716495048757,-500.0,0.00024931,3]
[327805436,1716495048767,-500.0,0.00024931,3]
[327805438,1716495048776,-500.0,0.00024931,3]
[327805440,1716495048786,-500.0,0.00024931,3]
[327805442,1716495048796,-3016.79,0.00024931,3]
[327805444,1716495048805,-627.2197545,0.00024931,3]
[327805446,1716495048815,-500.0,0.00024931,3]
[327805448,1716495048825,-500.0,0.00024931,3]
[327805450,1716495048834,-500.0,0.00024931,3]
[327805452,1716495048844,-544.69,0.00024931,3]
[327805454,1716495048854,-6307.24,0.00024931,3]
[327805456,1716495048863,-500.0,0.00024931,3]
[327805458,1716495048873,-1102.28,0.00024931,3]
[327805460,1716495048883,-500.0,0.00024931,3]
[327805462,1716495048892,-9821.07,0.00024931,3]
[327805464,1716495048904,-741.22,0.00024931,3]
[327805467,1716495048914,-250.92836181,0.00024931,3]
[327805469,1716495048924,-543.19,0.00024931,3]
[327805470,1716495048934,-8444.18,0.00024931,3]
[327805472,1716495048944,-983.8,0.00024931,3]
[327805475,1716495048954,-3851.62962784,0.00024931,3]
[327805505,1716495049254,-500.49382646,0.00024931,3]
[327806065,1716495054912,14747.77032752,0.00020913,2]
[327806086,1716495055315,1893.86633087,0.00020913,2]
[327806259,1716495057264,320.01286512,0.00020913,2]
[327806338,1716495058000,585.3334164,0.00020913,2]
[327806361,1716495058201,287.96367402,0.00020913,2]
[327806437,1716495058924,155.0356582,0.00020913,2]
[327806552,1716495063726,550.85396294,0.00020913,2]
[327806553,1716495064172,159.73051569,0.00022,2]
[327806557,1716495075877,175.6616625,0.00020913,2]
[327806569,1716495343569,150.90945433,0.00025708,30]
[327806570,1716495343611,150.90945433,0.00025194,120]
[327806591,1716495569242,150.90945433,0.00025507,30]
[327806592,1716495569302,150.90945433,0.00024996,120]
[327806594,1716495949143,-605.83238625,0.00019665,2]
[327806598,1716496025105,-48.06521845,0.00019665,2]
[327806599,1716496025124,-164.28156596,0.00019672,2]
[327806600,1716496025144,-87.37480233,0.00019772,2]
[327806601,1716496039099,-257.63193747,0.00019772,2]
[327806602,1716496039120,-2978.8083569,0.00019985,2]
[327806603,1716496039140,-1843.92000008,0.0002,2]
[327806604,1716496039160,-2881.56878985,0.00020137,2]
[327806605,1716496039179,-254.8415141,0.00020237,2]
[327806606,1716496039199,-164.28156596,0.00020243,2]
[327806607,1716496039220,-168.501507,0.00020349,2]
[327806608,1716496039242,-164.28156596,0.00020813,2]
[327806609,1716496039262,-2031.9,0.00020912,2]
[327806610,1716496039283,-173.7338918,0.00020913,2]
[327806611,1716496039301,-155.0,0.00020913,2]
[327806612,1716496039321,-22438.16768703,0.00020913,2]
[327806614,1716496148371,-150.0,0.000189,2]
[327806615,1716496148391,-306.8638936,0.00019658,2]
[327806616,1716496148413,-36991.33962755,0.00020913,2]
[327806617,1716496148434,-24900.0,0.00021204,2]
[327806618,1716496148454,-166.666666,0.00021918,2]
[327806619,1716496148480,-4182.2614967,0.00021918,2]
[327806620,1716496159137,-151.0,0.00022891,3]
[327806621,1716496159164,-155.04031048,0.00023,2]
[327806622,1716496159196,-430.3618645,0.00023,2]
[327806623,1716496159575,33902.52501504,0.00020913,2]
[327806624,1716496159608,7487.46613364,0.00020913,2]
[327806691,1716496233354,-12672.1303559,0.0002353,2]
[327806694,1716496233363,-151.99986028,0.00024284,2]
[327806695,1716496233373,-538.69963,0.00024384,2]
[327806697,1716496233383,-170.214728,0.00024384,2]
[327806699,1716496233392,-620.02432212,0.0002445,2]
[327806701,1716496233401,-166.666666,0.00024482,2]
[327806703,1716496233410,-18025.58643927,0.00024528,2]
[327806705,1716496233420,-1771.87263152,0.000246,3]
[327806707,1716496233429,-329.0635699,0.00024633,2]
[327806709,1716496233438,-658.33611615,0.00024655,2]
[327806711,1716496233449,-7539.41506108,0.00024655,2]
[327806713,1716496233458,-702.80759732,0.00024655,2]
[327806715,1716496233467,-155.13329161,0.00024655,2]
[327806717,1716496233476,-232.70495069,0.00024655,2]
[327806719,1716496233486,-187.71376422,0.00024655,4]
[327806722,1716496233496,-174.65826339,0.00024655,2]
[327806725,1716496233505,-772.21556016,0.00024655,2]
[327806727,1716496233515,-308.15113988,0.00024655,2]
[327806731,1716496233525,-228.6001014,0.00024655,2]
[327806734,1716496233534,-155.0356582,0.00024655,2]
[327806737,1716496233544,-690.22101912,0.00024655,2]
[327806740,1716496233554,-1179.31962588,0.00024655,2]
[327806742,1716496233564,-2679.56412785,0.00024655,2]
[327806745,1716496233578,-345.47411395,0.00024655,2]
[327806748,1716496233587,-155.0356582,0.00024655,2]
[327806751,1716496233597,-155.0356582,0.00024655,2]
[327806754,1716496233607,-528.62113532,0.00024655,2]
[327806757,1716496233617,-1196.62384614,0.00024655,2]
[327806759,1716496233627,-684.66208646,0.00024655,2]
[327806761,1716496233638,-187.1961905,0.00024655,2]
[327806763,1716496233648,-238.83667024,0.00024655,2]
[327806764,1716496233658,-1972.55891415,0.00024655,2]
[327806766,1716496233668,-156.49929555,0.00024655,2]
[327806768,1716496233679,-274.38861044,0.00024655,2]
[327806770,1716496233688,-1350.17092201,0.00024655,2]
[327806771,1716496233698,-155.04031048,0.00024655,2]
[327806773,1716496233707,-531.26583784,0.00024655,2]
[327806775,1716496233717,-2374.81240837,0.00024655,2]
[327806777,1716496233726,-1875.29621628,0.00024655,2]
[327806779,1716496233736,-10112.73841722,0.00024656,2]
[327806780,1716496233746,-500.0,0.00024656,2]
[327806781,1716496233756,-542.70239692,0.00024656,2]
[327806783,1716496233766,-500.0,0.00024656,2]
[327806785,1716496233775,-500.0,0.00024656,2]
[327806786,1716496233785,-500.0,0.00024656,2]
[327806788,1716496233794,-500.0,0.00024656,2]
[327806789,1716496233804,-500.0,0.00024656,2]
[327806791,1716496233813,-439.18179486,0.00024656,2]
[327806793,1716496233825,-431.19036169,0.00024656,2]
[327806794,1716496233836,-24791.66355299,0.00024657,11]
[327806795,1716496233845,-500.0,0.00024657,2]
[327806796,1716496233855,-500.0,0.00024657,2]
[327806797,1716496233864,-551.58,0.00024657,2]
[327806798,1716496233873,-500.0,0.00024657,2]
[327806799,1716496233882,-500.0,0.00024657,2]
[327806800,1716496233892,-1064.63,0.00024657,2]
[327806801,1716496233901,-500.0,0.00024657,2]
[327806802,1716496233911,-500.0,0.00024657,2]
[327806803,1716496233920,-500.0,0.00024657,2]
[327806804,1716496233930,-500.0,0.00024657,2]
[327806805,1716496233941,-500.0,0.00024657,2]
[327806806,1716496233952,-500.0,0.00024657,2]
[327806807,1716496233962,-500.0,0.00024657,2]
[327806808,1716496233971,-1503.86,0.00024657,2]
[327806809,1716496233981,-300.0,0.00024657,2]
[327806810,1716496233991,-500.0,0.00024657,2]
[327806811,1716496234000,-500.0,0.00024657,2]
[327806812,1716496234010,-500.0,0.00024657,2]
[327806813,1716496234019,-500.0,0.00024657,2]
[327806814,1716496234028,-500.0,0.00024657,2]
[327806815,1716496234038,-500.0,0.00024657,2]
[327806816,1716496234047,-1084.4,0.00024657,2]
[327806817,1716496234056,-391.95069218,0.00024657,2]
[327806818,1716496234066,-500.0,0.00024657,2]
[327806819,1716496234076,-500.0,0.00024657,2]
[327806820,1716496234086,-500.0,0.00024657,2]
[327806821,1716496234096,-500.0,0.00024657,2]
[327806822,1716496234105,-531.95,0.00024657,2]
[327806823,1716496234115,-500.0,0.00024657,2]
[327806824,1716496234124,-500.0,0.00024657,2]
[327806825,1716496234133,-889.8,0.00024657,2]
[327806826,1716496234143,-500.0,0.00024657,2]
[327806827,1716496234152,-500.83,0.00024657,2]
[327806828,1716496234162,-155.00155002,0.00024657,2]
[327806829,1716496234171,-593.28,0.00024657,2]
[327806830,1716496234181,-857.11,0.00024657,2]
[327806831,1716496234190,-500.0,0.00024657,2]
[327806832,1716496234203,-704.62,0.00024657,2]
[327806833,1716496234211,-500.0,0.00024657,2]
[327806834,1716496234220,-554.38,0.00024657,2]
[327806835,1716496234230,-500.0,0.00024657,2]
[327806836,1716496234239,-1132.7,0.00024657,2]
[327806837,1716496234248,-500.0,0.00024657,2]
[327806838,1716496234257,-511.04,0.00024657,2]
[327806839,1716496234266,-500.0,0.00024657,2]
[327806840,1716496234276,-500.0,0.00024657,2]
[327806841,1716496234286,-500.0,0.00024657,2]
[327806842,1716496234295,-500.0,0.00024657,2]
[327806843,1716496234305,-500.0,0.00024657,2]
[327806844,1716496234315,-994.65,0.00024657,2]
[327806845,1716496234325,-1305.86,0.00024657,2]
[327806846,1716496234334,-500.0,0.00024657,2]
[327806847,1716496234344,-500.0,0.00024657,2]
[327806848,1716496234354,-500.0,0.00024657,2]
[327806849,1716496234363,-500.0,0.00024657,2]
[327806850,1716496234373,-500.0,0.00024657,2]
[327806851,1716496234382,-500.0,0.00024657,2]
[327806852,1716496234392,-1157.85,0.00024657,2]
[327806853,1716496234401,-500.0,0.00024657,2]
[327806854,1716496234411,-500.0,0.00024657,2]
[327806855,1716496234420,-500.0,0.00024657,2]
[327806856,1716496234430,-500.0,0.00024657,2]
[327806857,1716496234439,-500.0,0.00024657,2]
[327806858,1716496234451,-948.19,0.00024657,2]
[327806859,1716496234460,-500.0,0.00024657,2]
[327806860,1716496234470,-608.73,0.00024657,2]
[327806861,1716496234479,-500.0,0.00024657,2]
[327806862,1716496234489,-500.0,0.00024657,2]
[327806863,1716496234498,-503.57,0.00024657,2]
[327806864,1716496234507,-500.0,0.00024657,2]
[327806865,1716496234517,-2261.63,0.00024657,2]
[327806866,1716496234527,-617.82,0.00024657,2]
[327806867,1716496234537,-500.0,0.00024657,2]
[327806868,1716496234546,-500.0,0.00024657,2]
[327806869,1716496234560,-2892.57,0.00024657,2]
[327806870,1716496234569,-500.0,0.00024657,2]
[327806871,1716496234579,-500.0,0.00024657,2]
[327806872,1716496234588,-500.0,0.00024657,2]
[327806873,1716496234599,-500.0,0.00024657,2]
[327806874,1716496234609,-500.0,0.00024657,2]
[327806875,1716496234618,-500.0,0.00024657,2]
[327806876,1716496234628,-1379.49,0.00024657,2]
[327806877,1716496234640,-500.0,0.00024657,2]
[327806878,1716496234651,-500.0,0.00024657,2]
[327806879,1716496234660,-2257.15,0.00024657,2]
[327806880,1716496234670,-500.0,0.00024657,2]
[327806881,1716496234679,-500.0,0.00024657,2]
[327806882,1716496234689,-500.0,0.00024657,2]
[327806883,1716496234702,-500.0,0.00024657,2]
[327806884,1716496234713,-500.0,0.00024657,2]
[327806885,1716496234723,-1908.68,0.00024657,2]
[327806886,1716496234735,-500.0,0.00024657,2]
[327806887,1716496234745,-2311.09,0.00024657,2]
[327806888,1716496234755,-500.0,0.00024657,2]
[327806889,1716496234764,-1874.06,0.00024657,2]
[327806890,1716496234774,-1213.98,0.00024657,2]
[327806891,1716496234784,-500.0,0.00024657,2]
[327806892,1716496234794,-500.0,0.00024657,2]
[327806893,1716496234804,-500.0,0.00024657,2]
[327806894,1716496234814,-820.74,0.00024657,2]
[327806895,1716496234823,-793.36,0.00024657,2]
[327806896,1716496234833,-500.0,0.00024657,2]
[327806897,1716496234843,-500.0,0.00024657,2]
[327806898,1716496234853,-1548.66,0.00024657,2]
[327806899,1716496234863,-1466.65,0.00024657,2]
[327806900,1716496234873,-1171.9,0.00024657,2]
[327806901,1716496234882,-639.5,0.00024657,2]
[327806902,1716496234892,-624.86,0.00024657,2]
[327806903,1716496234902,-537.29,0.00024657,2]
[327806904,1716496234911,-5539.32548662,0.00024657,2]
[327806960,1716496238680,-3088.61016769,0.00024657,2]
[327806961,1716496238720,-374.71434569,0.00024657,2]
[327806962,1716496238730,-125.06132247,0.00024657,2]
[327806963,1716496238741,-427.02867753,0.00024657,2]
[327806964,1716496238750,-796.52,0.00024657,2]
[327806965,1716496238760,-500.0,0.00024657,2]
[327806966,1716496238769,-500.0,0.00024657,2]
[327806967,1716496238778,-901.82,0.00024657,2]
[327806968,1716496238788,-500.0,0.00024657,2]
[327806969,1716496238798,-2786.73,0.00024657,2]
[327806970,1716496238807,-500.0,0.00024657,2]
[327806971,1716496238817,-500.0,0.00024657,2]
[327806972,1716496238826,-500.0,0.00024657,2]
[327806973,1716496238836,-500.0,0.00024657,2]
[327806974,1716496238845,-500.0,0.00024657,2]
[327806975,1716496238854,-500.0,0.00024657,2]
[327806976,1716496238863,-500.0,0.00024657,2]
[327806977,1716496238873,-500.0,0.00024657,2]
[327806978,1716496238882,-500.0,0.00024657,2]
[327806979,1716496238892,-500.0,0.00024657,2]
[327806980,1716496238902,-2765.39,0.00024657,2]
[327806981,1716496238911,-500.0,0.00024657,2]
[327806982,1716496238921,-500.0,0.00024657,2]
[327806983,1716496238930,-1054.26,0.00024657,2]
[327806984,1716496238940,-1010.43,0.00024657,2]
[327806985,1716496238950,-679.45,0.00024657,2]
[327806986,1716496238962,-5781.64,0.00024657,2]
[327806987,1716496238971,-500.0,0.00024657,2]
[327806988,1716496238981,-2781.33132245,0.00024657,2]
[327806989,1716496239027,-4959.16867755,0.00024657,2]
[327806990,1716496239038,-501.77,0.00024657,2]
[327806991,1716496239048,-878.21,0.00024657,2]
[327806992,1716496239058,-500.0,0.00024657,2]
[327806993,1716496239068,-4960.64,0.00024657,2]
[327806994,1716496239079,-547.21,0.00024657,2]
[327806995,1716496239088,-500.0,0.00024657,2]
[327806996,1716496239098,-500.0,0.00024657,2]
[327806997,1716496239108,-519.81,0.00024657,2]
[327806998,1716496239118,-500.0,0.00024657,2]
[327806999,1716496239128,-598.25,0.00024657,2]
[327807000,1716496239139,-500.0,0.00024657,2]
[327807001,1716496239149,-3060.9,0.00024657,2]
[327807002,1716496239159,-500.0,0.00024657,2]
[327807003,1716496239169,-500.0,0.00024657,2]
[327807004,1716496239179,-271.57,0.00024657,3]
[327807005,1716496239189,-500.0,0.00024657,2]
[327807006,1716496239199,-500.0,0.00024657,2]
[327807007,1716496239210,-6978.73,0.00024657,2]
[327807008,1716496239220,-500.0,0.00024657,2]
[327807009,1716496239230,-500.0,0.00024657,2]
[327807010,1716496239242,-1765.04,0.00024657,2]
[327807011,1716496239252,-2431.52,0.00024657,2]
[327807012,1716496239262,-500.0,0.00024657,2]
[327807013,1716496239272,-500.0,0.00024657,2]
[327807014,1716496239282,-877.18132245,0.00024657,2]
[327807015,1716496239295,-1701.21867755,0.00024657,2]
[327807016,1716496239305,-1891.10132245,0.00024657,2]
[327807050,1716496241251,-515.76867755,0.00024657,2]
[327807051,1716496241261,-159.24132245,0.00024657,2]
[327807052,1716496241332,-3032.77867755,0.00024657,2]
[327807053,1716496241343,-44.39901254,0.00024657,2]
[327807054,1716496241355,-333.49093009,0.00024657,2]
[327807055,1716496241367,-122.11005737,0.00024657,2]
[327807056,1716496241377,-794.39901254,0.00024657,2]
[327807057,1716496241389,-1889.29098746,0.00024657,2]
[327807058,1716496241398,-500.0,0.00024657,2]
[327807059,1716496241408,-351.85,0.00024657,2]
[327807060,1716496241417,-500.0,0.00024657,2]
[327807061,1716496241427,-852.95,0.00024657,2]
[327807062,1716496241437,-500.0,0.00024657,2]
[327807063,1716496241447,-3833.90186154,0.00024657,2]
[327807064,1716496241462,-357.79666212,0.00024657,2]
[327807370,1716496246102,-345.00673985,0.00024657,2]
[327807371,1716496246114,-11720.12473649,0.00024657,2]
[327807372,1716496246123,-500.0,0.00024657,2]
[327807373,1716496246132,-500.0,0.00024657,3]
[327807374,1716496246142,-500.0,0.00024657,4]
[327807375,1716496246151,-500.0,0.00024657,5]
[327807376,1716496246160,-500.0,0.00024657,6]
[327807378,1716496246170,-500.0,0.00024657,7]
[327807379,1716496246179,-500.0,0.00024657,8]
[327807381,1716496246188,-500.0,0.00024657,9]
[327807383,1716496246198,-613.81,0.00024657,2]
[327807385,1716496246207,-18500.71,0.00024657,2]
[327807387,1716496246216,-500.0,0.00024657,2]
[327807389,1716496246226,-760.43,0.00024657,2]
[327807391,1716496246235,-613.15,0.00024657,2]
[327807393,1716496246245,-1110.97,0.00024657,2]
[327807395,1716496246254,-500.0,0.00024657,2]
[327807397,1716496246263,-500.0,0.00024657,2]
[327807399,1716496246272,-4711.46,0.00024657,2]
[327807401,1716496246281,-420.16469898,0.00024657,2]
[327807403,1716496246291,-391.74355821,0.00024657,2]
[327807405,1716496246300,-273.09235675,0.00024657,2]
[327807418,1716496246411,-226.90764325,0.00024657,2]
[327807420,1716496246419,-838.01,0.00024657,2]
[327807422,1716496246428,-1868.21,0.00024657,2]
[327807424,1716496246437,-500.0,0.00024657,2]
[327807426,1716496246446,-500.0,0.00024657,2]
[327807428,1716496246455,-500.0,0.00024657,2]
[327807430,1716496246466,-500.0,0.00024657,2]
[327807432,1716496246475,-1200.38,0.00024657,2]
[327807434,1716496246485,-500.0,0.00024657,2]
[327807436,1716496246495,-1756.51,0.00024657,2]
[327807438,1716496246504,-2530.27,0.00024657,2]
[327807440,1716496246513,-500.0,0.00024657,2]
[327807442,1716496246522,-1483.63,0.00024657,2]
[327807444,1716496246531,-500.0,0.00024657,2]
[327807446,1716496246541,-500.0,0.00024657,2]
[327807448,1716496246550,-500.0,0.00024657,2]
[327807450,1716496246561,-200.0,0.00024658,15]
[327807452,1716496246572,-398.28945425,0.00024679,2]
[327807454,1716496246582,-7400.54780324,0.000247,2]
[327807456,1716496246592,-150.0,0.00024809,2]
[327807458,1716496246602,-496.0,0.00024809,2]
[327807460,1716496246611,-4225.76789331,0.00024812,2]
[327807462,1716496246620,-417.48839794,0.00024893,2]
[327807464,1716496246630,-155.00310006,0.0002491,2]
[327807466,1716496246639,-1630.47,0.0002492,2]
[327807468,1716496246651,-582.19,0.0002492,2]
[327807470,1716496246660,-1078.91,0.0002492,2]
[327807472,1716496246670,-771.13,0.0002492,2]
[327807474,1716496246679,-1857.24,0.0002492,2]
[327807476,1716496246688,-1114.49,0.0002492,2]
[327807478,1716496246700,-352.40097114,0.0002492,2]
[327807480,1716496246709,-500.0,0.0002492,2]
[327807482,1716496246721,-798.13,0.0002492,2]
[327807484,1716496246730,-1184.36,0.0002492,2]
[327807486,1716496246739,-500.0,0.0002492,2]
[327807488,1716496246748,-2025.84,0.0002492,2]
[327807490,1716496246757,-754.56,0.0002492,2]
[327807492,1716496246768,-500.0,0.0002492,2]
[327807494,1716496246778,-2564.38,0.0002492,2]
[327807496,1716496246788,-500.0,0.0002492,2]
[327807498,1716496246797,-3524.12,0.0002492,2]
[327807500,1716496246807,-1146.59,0.0002492,2]
[327807502,1716496246816,-500.0,0.0002492,2]
[327807504,1716496246825,-1137.64,0.0002492,2]
[327807506,1716496246835,-1531.68,0.0002492,2]
[327807508,1716496246844,-29894.82,0.00024921,3]
[327807510,1716496246853,-500.0,0.0002493,10]
[327807512,1716496246862,-406.30505702,0.0002493,11]
[327807514,1716496246872,-14655.10725472,0.00024931,11]
[327807516,1716496246882,-1551.67091679,0.00024931,2]
[327807518,1716496246891,-500.0,0.00024931,3]
[327807520,1716496246900,-1064.63,0.00024931,3]
[327807522,1716496246910,-500.0,0.00024931,3]
[327807524,1716496246919,-500.0,0.00024931,3]
[327807526,1716496246929,-500.0,0.00024931,3]
[327807528,1716496246938,-500.0,0.00024931,3]
[327807530,1716496246947,-500.0,0.00024931,3]
[327807532,1716496246956,-500.0,0.00024931,3]
[327807534,1716496246968,-500.0,0.00024931,3]
[327807536,1716496246978,-1503.86,0.00024931,3]
[327807538,1716496246987,-500.0,0.00024931,3]
[327807540,1716496246997,-500.0,0.00024931,3]
[327807542,1716496247006,-500.0,0.00024931,3]
[327807544,1716496247015,-20.18300499,0.00024931,3]
[327807546,1716496247027,-559.42080408,0.00024931,3]
[327807548,1716496247036,-500.0,0.00024931,3]
[327807550,1716496247046,-277.50602978,0.00024931,3]
[327807552,1716496247055,-1084.4,0.00024931,3]
[327807554,1716496247064,-500.0,0.00024931,3]
[327807556,1716496247073,-500.0,0.00024931,3]
[327807558,1716496247082,-500.0,0.00024931,3]
[327807560,1716496247091,-39.97286829,0.00024931,3]
[327808363,1716496254938,10141.91405332,0.00020913,2]
[327808437,1716496258221,175.6616625,0.00020913,2]
[327808438,1716496319747,2529.70760707,0.00020913,2]
[327808440,1716496336413,521.62676082,9.999e-05,2]
[327808453,1716497149174,-951.89114917,0.0002,2]
[327808454,1716497149195,-182.31527446,0.00020369,2]
[327808456,1716497354174,-24900.0,0.00020891,2]
[327808457,1716497354194,-528.62113532,0.00020912,2]
[327808458,1716497354214,-155.0356582,0.00020912,2]
[327808459,1716497354234,-155.0341075,0.00020912,2]
[327808460,1716497354254,-155.45045982,0.00020912,2]
[327808461,1716497354274,-189.96457126,0.00020912,2]
[327808462,1716497354294,-307.84229627,0.00020912,2]
[327808463,1716497354314,-15584.09357406,0.00020913,2]
[327808494,1716497433091,-155.0356582,0.00023,2]
[327808495,1716497433101,-309.58154492,0.00023,2]
[327808496,1716497433110,-500.0,0.00023972,2]
[327808497,1716497433119,-500.0,0.00023972,2]
[327808498,1716497433128,-170.214728,0.00024384,2]
[327808499,1716497433137,-556.099706,0.00024384,2]
[327808500,1716497433146,-1270.83606559,0.00024557,2]
[327808501,1716497433155,-260.44810992,0.00024557,2]
[327808502,1716497433164,-175.69420049,0.00024655,2]
[327808503,1716497433173,-500.0,0.00024656,2]
[327808504,1716497433182,-446.87245583,0.00024656,2]
[327808505,1716497433191,-500.0,0.00024656,2]
[327808506,1716497433200,-370.02513968,0.00024656,2]
[327808507,1716497433210,-500.0,0.00024656,2]
[327808508,1716497433219,-500.0,0.00024656,2]
[327808509,1716497433228,-603.70499504,0.00024656,2]
[327808510,1716497433237,-500.0,0.00024656,2]
[327808511,1716497433247,-500.0,0.00024656,2]
[327808512,1716497433256,-500.0,0.00024656,2]
[327808513,1716497433265,-500.0,0.00024656,2]
[327808514,1716497433274,-579.3571085,0.00024656,2]
[327808515,1716497433283,-500.0,0.00024656,2]
[327808516,1716497433292,-500.0,0.00024656,2]
[327808517,1716497433301,-500.0,0.00024656,2]
[327808518,1716497433311,-604.66442474,0.00024656,2]
[327808519,1716497433320,-500.0,0.00024656,2]
[327808520,1716497433329,-500.0,0.00024656,2]
[327808521,1716497433338,-500.0,0.00024656,2]
[327808522,1716497433347,-500.0,0.00024656,2]
[327808523,1716497433356,-499.99999999,0.00024656,2]
[327808524,1716497433365,-20957.59060222,0.00024657,11]
[327808560,1716497438192,-9283.8116614,0.00024657,11]
[327808562,1716497438202,-500.0,0.00024657,2]
[327808564,1716497438212,-500.0,0.00024657,2]
[327808566,1716497438221,-500.0,0.00024657,2]
[327808568,1716497438231,-500.0,0.00024657,2]
[327808570,1716497438240,-500.0,0.00024657,2]
[327808572,1716497438250,-500.0,0.00024657,2]
[327808574,1716497438260,-500.0,0.00024657,2]
[327808576,1716497438269,-500.0,0.00024657,2]
[327808578,1716497438278,-500.0,0.00024657,2]
[327808580,1716497438287,-500.0,0.00024657,2]
[327808582,1716497438298,-500.0,0.00024657,2]
[327808584,1716497438307,-500.0,0.00024657,2]
[327808586,1716497438316,-500.0,0.00024657,2]
[327808588,1716497438326,-500.0,0.00024657,2]
[327808590,1716497438335,-500.0,0.00024657,2]
[327808592,1716497438346,-500.0,0.00024657,2]
[327808594,1716497438362,-500.0,0.00024657,2]
[327808596,1716497438372,-398.84062833,0.00024657,2]
[327808598,1716497438381,-508.64634203,0.00024657,2]
[327808600,1716497438391,-500.0,0.00024657,2]
[327808602,1716497438400,-500.0,0.00024657,2]
[327808603,1716497438410,-500.0,0.00024657,2]
[327808605,1716497438419,-500.0,0.00024657,2]
[327808607,1716497438429,-500.0,0.00024657,2]
[327808609,1716497438438,-500.0,0.00024657,2]
[327808610,1716497438447,-500.0,0.00024657,2]
[327808611,1716497438456,-514.7984048,0.00024657,2]
[327808612,1716497438465,-500.0,0.00024657,2]
[327808613,1716497438474,-500.0,0.00024657,2]
[327808614,1716497438483,-500.0,0.00024657,2]
[327808615,1716497438492,-500.0,0.00024657,2]
[327808616,1716497438504,-500.0,0.00024657,2]
[327808617,1716497438514,-500.0,0.00024657,2]
[327808618,1716497438523,-500.0,0.00024657,2]
[327808619,1716497438532,-500.0,0.00024657,2]
[327808620,1716497438541,-953.21,0.00024657,2]
[327808621,1716497438551,-500.0,0.00024657,2]
[327808622,1716497438560,-726.77,0.00024657,2]
[327808623,1716497438570,-500.0,0.00024657,2]
[327808624,1716497438579,-557.93,0.00024657,2]
[327808625,1716497438588,-500.0,0.00024657,2]
[327808626,1716497438597,-500.0,0.00024657,2]
[327808627,1716497438752,-500.0,0.00024657,2]
[327808628,1716497438762,-500.0,0.00024657,2]
[327808629,1716497438771,-1289.56,0.00024657,2]
[327808630,1716497438781,-500.0,0.00024657,2]
[327808631,1716497438790,-529.09,0.00024657,2]
[327808632,1716497438799,-500.0,0.00024657,2]
[327808633,1716497438808,-1430.19,0.00024657,2]
[327808634,1716497438817,-583.36,0.00024657,2]
[327808635,1716497438827,-1033.96,0.00024657,2]
[327808636,1716497438836,-500.0,0.00024657,2]
[327808637,1716497438845,-500.0,0.00024657,2]
[327808638,1716497438855,-739.0,0.00024657,2]
[327808639,1716497438864,-500.0,0.00024657,2]
[327808640,1716497438874,-500.0,0.00024657,2]
[327808641,1716497438883,-500.0,0.00024657,2]
[327808643,1716497438892,-1779.85,0.00024657,2]
[327808645,1716497438902,-500.0,0.00024657,2]
[327808646,1716497438912,-500.0,0.00024657,2]
[327808648,1716497438923,-150.88975502,0.00024657,2]
[327808650,1716497438932,-500.0,0.00024657,2]